[Event "IV Elllobregat Open Chess Tmnt"]
[Site "Sant Boi de Llobregat, Spain"]
[Date "2023.12.03"]
[Round "4.34"]
[White "Alinasab, Mobina"]
[Black "Vaishali, Rameshbabu"]
[Result "1/2-1/2"]
[TimeControl "90min/40moves + 15min/end + 30sec from move 1"]
[WhiteFideId "12528897"]
[BlackFideId "5091756"]
[WhiteElo "2306"]
[BlackElo "2467"]

1. e4 c5 2. Nc3 Nc6 3. f4 g6 4. Nf3 Bg7 5. Bb5 Nd4 6. O-O a6 7. Bd3 d6 8. Nxd4
cxd4 9. Ne2 Nf6 10. c3 dxc3 11. dxc3 Qb6+ 12. Kh1 Bd7 13. Qe1 O-O 14. Ng3 Rac8
15. a4 {[%clk 01:17:55]} Be6 {[%clk 01:30:44]} 16. Qe2 {[%clk 01:13:17]} {[%emt
72:44:51]} Qc6 {[%clk 01:08:18]} 17. Bd2 {[%clk 01:00:26]} {[%emt 00:15:46]}
Bc4 {[%clk 01:05:54]} 18. Bxc4 {[%emt 00:13:43]} Qxc4 19. Rfe1 Qxe2 20. Rxe2
Rc6 21. Be3 Nd7 22. Nf1 Rfc8 23. Nd2 Nc5 24. Bxc5 {[%clk 00:50:07]} Rxc5 {[%clk
01:06:18]} 25. Ra3 {[%emt 00:51:36]} Kf8 26. Kg1 e6 27. Rb3 b5 28. Rb4 Ke7 29.
Kf1 Kd7 30. g3 Bf8 31. Re1 bxa4 32. Rxa4 Rb8 33. Rb1 Rb6 34. Ke2 f5 35. Kd3 Bg7
36. Kc2 Kc7 37. Nb3 Rcb5 38. Nd2 fxe4 39. Nxe4 d5 40. Ng5 h6 41. Nf3 {[%clk
00:30:18]} Bxc3 {[%clk 00:33:15]} 42. b3 {[%emt 01:39:14]} Bf6 43. Ne5 g5 44.
Nd3 Kd6 45. b4 Bd4 46. Rb3 Rc6+ 47. Kd2 Kc7 48. Rba3 Kb7 49. h4 gxh4 50. gxh4
h5 51. Ke2 Rbb6 52. b5 Rc4 53. bxa6+ Ka7 54. Kd2 Rb1 55. Rxc4 dxc4 56. Ra4 cxd3
57. Rxd4 Rh1 58. Kxd3 Rxh4 59. Ke3 Rh1 60. Kf2 {[%clk 00:03:54]} Kxa6 {[%clk
00:14:37]} 61. Rd6+ {[%clk 00:00:56]} {[%emt 00:36:17]} Kb7 {[%clk 00:01:12]}
{[%emt 00:00:15]} 62. Rxe6 {[%emt 00:00:07]} Kc7 63. Kg2 {[%clk 00:01:20]} Kd7
{[%clk 00:00:49]} {[%emt 00:01:40]} 64. Re5 {[%clk 00:00:48]} {[%emt 00:01:15]}
Rh4 {[%clk 00:01:07]} {[%emt 00:00:11]} 65. Kg3 {[%clk 00:01:03]} {[%emt
00:00:15]} Rh1 {[%clk 00:01:26]} {[%emt 00:00:11]} 66. Re2 {[%clk 00:00:50]}
{[%emt 00:00:43]} Rg1+ {[%clk 00:01:28]} {[%emt 00:00:28]} 67. Kf3 {[%clk
00:00:43]} {[%emt 00:00:38]} h4 {[%clk 00:01:39]} {[%emt 00:00:19]} 68. Rh2
{[%clk 00:00:49]} {[%emt 00:00:23]} Rg3+ {[%clk 00:02:03]} {[%emt 00:00:06]} 69.
Kf2 {[%clk 00:01:02]} {[%emt 00:00:17]} Rg4 {[%clk 00:02:22]} {[%emt 00:00:11]}
70. Kf3 {[%clk 00:01:28]} {[%emt 00:00:04]} Rg3+ {[%clk 00:02:49]} {[%emt
00:00:03]} 71. Kf2 {[%clk 00:01:54]} {[%emt 00:00:04]} 1/2-1/2

[Event "IV Elllobregat Open Chess Tmnt"]
[Site "Sant Boi de Llobregat, Spain"]
[Date "2023.12.03"]
[Round "4.35"]
[White "Fernandez Guillen, Ernesto J."]
[Black "Ahmad, Khagan"]
[Result "0-1"]
[TimeControl "90min/40moves + 15min/end + 30sec from move 1"]
[WhiteFideId "3512428"]
[BlackFideId "13431552"]
[WhiteElo "2462"]
[BlackElo "2285"]

1. e4 {[%clk 01:15:45]} {[%emt 00:15:14]} c5 {[%clk 01:30:55]} {[%emt
00:00:06]} 2. Nf3 {[%clk 01:15:12]} {[%emt 00:01:02]} Nc6 {[%clk 01:31:19]}
{[%emt 00:00:06]} 3. d4 {[%clk 01:15:37]} {[%emt 00:00:05]} cxd4 {[%clk
01:31:45]} {[%emt 00:00:05]} 4. Nxd4 {[%clk 01:16:02]} {[%emt 00:00:05]} Nf6
{[%clk 01:32:10]} {[%emt 00:00:05]} 5. Nc3 {[%clk 01:15:49]} {[%emt 00:00:43]}
e5 {[%clk 01:32:35]} {[%emt 00:00:05]} 6. Ndb5 {[%clk 01:16:16]} {[%emt
00:00:03]} d6 {[%clk 01:33:00]} {[%emt 00:00:05]} 7. Bg5 {[%clk 01:16:42]}
{[%emt 00:00:04]} a6 {[%clk 01:33:27]} {[%emt 00:00:04]} 8. Na3 {[%clk
01:17:07]} {[%emt 00:00:05]} b5 {[%clk 01:33:55]} {[%emt 00:00:02]} 9. Nd5
{[%clk 01:17:26]} {[%emt 00:00:10]} Be7 {[%clk 01:34:20]} {[%emt 00:00:06]} 10.
Bxf6 {[%clk 01:17:51]} {[%emt 00:00:04]} Bxf6 {[%clk 01:34:45]} {[%emt
00:00:05]} 11. c4 {[%clk 01:18:06]} {[%emt 00:00:15]} Nd4 {[%clk 01:35:10]}
{[%emt 00:00:06]} 12. Bd3 {[%clk 01:17:20]} {[%emt 00:01:16]} Be6 {[%clk
01:31:11]} {[%emt 00:04:28]} 13. O-O {[%clk 01:06:39]} {[%emt 00:11:11]} Bxd5
{[%clk 01:24:41]} {[%emt 00:07:01]} 14. cxd5 {[%clk 01:06:37]} {[%emt
00:00:32]} O-O {[%clk 01:21:16]} {[%emt 00:03:55]} 15. Nc2 {[%clk 01:05:42]}
{[%emt 00:01:25]} Nxc2 {[%clk 01:21:39]} {[%emt 00:00:06]} 16. Qxc2 {[%clk
01:05:14]} {[%emt 00:00:57]} Rc8 {[%clk 01:21:53]} {[%emt 00:00:16]} 17. Qe2
{[%clk 01:01:01]} {[%emt 00:04:43]} Qa5 {[%clk 01:12:25]} {[%emt 00:09:57]} 18.
a3 {[%clk 00:56:00]} {[%emt 00:05:33]} Rc7 {[%clk 01:05:20]} {[%emt 00:07:35]}
19. b4 {[%clk 00:54:34]} {[%emt 00:01:56]} Qa4 {[%clk 01:03:22]} {[%emt
00:02:19]} 20. Qd1 {[%clk 00:52:10]} {[%emt 00:03:01]} Qxd1 {[%clk 01:03:02]}
{[%emt 00:00:51]} 21. Rfxd1 {[%clk 00:52:22]} {[%emt 00:00:18]} g6 {[%clk
00:55:05]} {[%emt 00:08:28]} 22. a4 {[%clk 00:47:43]} {[%emt 00:05:09]} Rc3
{[%clk 00:54:47]} {[%emt 00:00:48]} 23. axb5 {[%clk 00:48:11]} {[%emt
00:00:02]} axb5 {[%clk 00:55:16]} {[%emt 00:00:01]} 24. Kf1 {[%clk 00:44:28]}
{[%emt 00:04:13]} Rb8 {[%clk 00:51:03]} {[%emt 00:04:43]} 25. Ke2 {[%clk
00:44:05]} {[%emt 00:00:53]} Bd8 {[%clk 00:48:16]} {[%emt 00:03:16]} 26. Rdb1
{[%clk 00:39:53]} {[%emt 00:04:42]} Bb6 {[%clk 00:41:57]} {[%emt 00:06:50]} 27.
f3 {[%clk 00:38:38]} {[%emt 00:01:45]} Kf8 {[%clk 00:39:58]} {[%emt 00:02:29]}
28. Kd2 {[%clk 00:31:29]} {[%emt 00:07:39]} Bd4 {[%clk 00:40:17]} {[%emt
00:00:11]} 29. Ra5 {[%clk 00:30:47]} {[%emt 00:01:12]} Rbc8 {[%clk 00:40:37]}
{[%emt 00:00:11]} 30. g3 {[%clk 00:29:13]} {[%emt 00:02:03]} h5 {[%clk
00:37:05]} {[%emt 00:04:03]} 31. f4 {[%clk 00:27:20]} {[%emt 00:02:23]} h4
{[%clk 00:35:45]} {[%emt 00:01:50]} 32. Ke2 {[%clk 00:22:37]} {[%emt 00:05:12]}
hxg3 {[%clk 00:35:46]} {[%emt 00:00:29]} 33. hxg3 {[%clk 00:23:04]} {[%emt
00:00:03]} Kg7 {[%clk 00:35:02]} {[%emt 00:01:14]} 34. fxe5 {[%clk 00:21:48]}
{[%emt 00:01:45]} Rh8 {[%clk 00:33:41]} {[%emt 00:01:51]} 35. Rd1 {[%clk
00:21:56]} {[%emt 00:00:22]} Bxe5 {[%clk 00:31:42]} {[%emt 00:02:30]} 36. Rf1
{[%clk 00:16:05]} {[%emt 00:06:20]} Rh2+ {[%clk 00:19:16]} {[%emt 00:12:55]} 37.
Ke3 {[%clk 00:16:01]} {[%emt 00:00:36]} Rg2 {[%clk 00:19:17]} {[%emt 00:00:28]}
38. Rf3 {[%clk 00:16:07]} {[%emt 00:00:24]} g5 {[%clk 00:19:27]} {[%emt
00:00:20]} 39. g4 {[%clk 00:14:16]} {[%emt 00:02:22]} Rb3 {[%clk 00:18:39]}
{[%emt 00:01:18]} 40. Rxb5 {[%clk 00:28:21]} {[%emt 00:01:26]} Bf4+ {[%clk
00:33:49]} {[%emt 00:00:19]} 41. Kd4 {[%clk 00:28:43]} {[%emt 00:00:08]} Rd2
{[%clk 00:34:06]} {[%emt 00:00:12]} 42. e5 {[%clk 00:29:04]} {[%emt 00:00:10]}
Bxe5+ {[%clk 00:32:46]} {[%emt 00:01:51]} 43. Ke4 {[%clk 00:29:07]} {[%emt
00:00:27]} f5+ {[%clk 00:29:24]} {[%emt 00:03:52]} 44. gxf5 {[%clk 00:29:34]}
{[%emt 00:00:02]} Kf6 {[%clk 00:29:26]} {[%emt 00:00:28]} 45. Rb8 {[%clk
00:24:05]} {[%emt 00:05:59]} g4 {[%clk 00:29:25]} {[%emt 00:00:30]} 46. Re3
{[%clk 00:24:33]} {[%emt 00:00:02]} g3 {[%clk 00:28:46]} {[%emt 00:01:09]} 47.
Rf8+ {[%clk 00:22:02]} {[%emt 00:03:01]} Kg7 {[%clk 00:28:56]} {[%emt
00:00:16]} 48. Rb8 {[%clk 00:22:28]} {[%emt 00:00:08]} Rdxd3 {[%emt 00:01:39]}
0-1

[Event "IV Elllobregat Open Chess Tmnt"]
[Site "Sant Boi de Llobregat, Spain"]
[Date "2023.12.03"]
[Round "4.36"]
[White "Escobar Forero, Alder"]
[Black "Sherman, Raem"]
[Result "0-1"]
[TimeControl "90min/40moves + 15min/end + 30sec from move 1"]
[WhiteFideId "4400801"]
[BlackFideId "2822288"]
[WhiteElo "2450"]
[BlackElo "2278"]

1. e4 {[%clk 01:30:30]} {[%emt 00:00:30]} e6 {[%clk 01:30:27]} {[%emt
00:00:33]} 2. d3 {[%clk 01:30:17]} {[%emt 00:00:42]} d5 {[%clk 01:30:10]}
{[%emt 00:00:47]} 3. Qe2 {[%clk 01:30:43]} {[%emt 00:00:04]} Nc6 {[%clk
01:30:10]} {[%emt 00:00:30]} 4. Nf3 {[%clk 01:31:07]} {[%emt 00:00:06]} Nf6
{[%clk 01:29:53]} {[%emt 00:00:47]} 5. e5 {[%clk 01:14:26]} {[%emt 00:17:12]}
Nd7 {[%clk 01:29:10]} {[%emt 00:01:12]} 6. g3 {[%clk 01:14:52]} {[%emt
00:00:05]} f6 {[%clk 01:25:27]} {[%emt 00:04:14]} 7. d4 {[%clk 01:07:52]}
{[%emt 00:07:29]} fxe5 {[%clk 01:23:56]} {[%emt 00:02:00]} 8. dxe5 {[%clk
01:08:16]} {[%emt 00:00:06]} Be7 {[%clk 01:24:09]} {[%emt 00:00:17]} 9. Bf4
{[%clk 01:07:22]} {[%emt 00:01:24]} O-O {[%clk 01:22:49]} {[%emt 00:01:50]} 10.
h4 {[%clk 01:06:55]} {[%emt 00:00:58]} b5 {[%clk 01:17:25]} {[%emt 00:05:54]}
11. Nc3 {[%clk 01:04:12]} {[%emt 00:03:13]} a6 {[%clk 01:15:30]} {[%emt
00:02:25]} 12. O-O-O {[%clk 01:00:38]} {[%emt 00:04:04]} Nc5 {[%clk 01:08:29]}
{[%emt 00:07:30]} 13. Qe3 {[%clk 00:49:10]} {[%emt 00:11:59]} Qe8 {[%clk
01:03:26]} {[%emt 00:05:33]} 14. Bg2 {[%clk 00:30:46]} {[%emt 00:18:55]} Na5
{[%clk 00:56:31]} {[%emt 00:07:24]} 15. Nd4 {[%clk 00:17:06]} {[%emt 00:14:12]}
Kh8 {[%clk 00:52:23]} {[%emt 00:04:37]} 16. b3 {[%clk 00:10:20]} {[%emt
00:07:17]} Ncb7 {[%clk 00:43:17]} {[%emt 00:09:36]} 17. Qe1 {[%clk 00:08:47]}
{[%emt 00:02:02]} Ba3+ {[%clk 00:42:00]} {[%emt 00:01:47]} 18. Kb1 {[%clk
00:09:01]} {[%emt 00:00:16]} c5 {[%clk 00:41:42]} {[%emt 00:00:48]} 19. Nf3
{[%clk 00:07:41]} {[%emt 00:01:49]} Bd7 {[%clk 00:40:01]} {[%emt 00:02:11]} 20.
Ne2 {[%clk 00:05:06]} {[%emt 00:03:05]} Nc6 {[%clk 00:39:23]} {[%emt 00:01:08]}
21. Bd2 {[%clk 00:04:17]} {[%emt 00:01:19]} a5 {[%clk 00:39:11]} {[%emt
00:00:43]} 22. Nf4 {[%clk 00:04:09]} {[%emt 00:00:38]} a4 {[%clk 00:38:10]}
{[%emt 00:01:31]} 23. h5 {[%clk 00:03:41]} {[%emt 00:00:58]} Ra7 {[%clk
00:34:51]} {[%emt 00:03:49]} 24. Ng6+ {[%clk 00:03:11]} {[%emt 00:01:00]} Kg8
{[%clk 00:35:16]} {[%emt 00:00:05]} 25. Nxf8 {[%clk 00:03:37]} {[%emt
00:00:04]} Qxf8 {[%clk 00:35:30]} {[%emt 00:00:16]} 26. g4 {[%clk 00:02:13]}
{[%emt 00:01:54]} Qa8 {[%clk 00:32:26]} {[%emt 00:03:34]} 27. Qe2 {[%clk
00:02:12]} {[%emt 00:00:31]} Nb4 {[%clk 00:32:12]} {[%emt 00:00:44]} 28. Bxb4
{[%clk 00:01:51]} {[%emt 00:00:52]} Bxb4 {[%clk 00:32:30]} {[%emt 00:00:12]} 29.
Rh3 {[%clk 00:02:00]} {[%emt 00:00:20]} Na5 {[%clk 00:30:44]} {[%emt 00:02:16]}
30. c3 {[%clk 00:01:43]} {[%emt 00:00:47]} axb3 {[%clk 00:29:14]} {[%emt
00:02:01]} 31. Nd2 {[%clk 00:00:48]} {[%emt 00:01:25]} bxa2+ {[%clk 00:27:59]}
{[%emt 00:01:45]} 32. Ka1 {[%clk 00:00:59]} {[%emt 00:00:19]} Ba3 {[%clk
00:28:14]} {[%emt 00:00:15]} 33. c4 {[%clk 00:00:58]} {[%emt 00:00:30]} Nxc4
{[%clk 00:28:28]} {[%emt 00:00:16]} 34. Nxc4 {[%clk 00:00:40]} {[%emt
00:00:48]} bxc4 {[%clk 00:28:53]} {[%emt 00:00:06]} 35. Rc3 {[%clk 00:00:42]}
{[%emt 00:00:28]} Rb7 {[%clk 00:27:55]} {[%emt 00:01:28]} 36. Rc2 {[%clk
00:00:31]} {[%emt 00:00:42]} Ba4 {[%clk 00:27:53]} {[%emt 00:00:31]} 37. Rxd5
{[%clk 00:00:34]} {[%emt 00:00:26]} Bxc2 {[%clk 00:28:06]} {[%emt 00:00:18]} 38.
Qxc2 {[%clk 00:00:33]} {[%emt 00:00:31]} Rb1+ {[%clk 00:28:07]} {[%emt
00:00:28]} 39. Kxa2 {[%clk 00:00:56]} {[%emt 00:00:07]} Bb2+ {[%clk 00:28:33]}
{[%emt 00:00:04]} 0-1

[Event "IV Elllobregat Open Chess Tmnt"]
[Site "Sant Boi de Llobregat, Spain"]
[Date "2023.12.03"]
[Round "4.37"]
[White "Peyrer, Konstantin"]
[Black "Pogorelov, Ruslan"]
[Result "1-0"]
[TimeControl "90min/40moves + 15min/end + 30sec from move 1"]
[WhiteFideId "1640879"]
[BlackFideId "14100363"]
[WhiteElo "2447"]
[BlackElo "2271"]

1. e4 {[%clk 01:30:53]} {[%emt 00:00:06]} c5 {[%clk 01:30:54]} {[%emt
00:00:07]} 2. Nf3 {[%clk 01:31:18]} {[%emt 00:00:04]} e6 {[%clk 01:31:16]}
{[%emt 00:00:10]} 3. d4 {[%clk 01:31:40]} {[%emt 00:00:07]} cxd4 {[%clk
01:31:38]} {[%emt 00:00:08]} 4. Nxd4 {[%clk 01:32:04]} {[%emt 00:00:06]} Nf6
{[%clk 01:31:58]} {[%emt 00:00:11]} 5. Nc3 {[%clk 01:32:26]} {[%emt 00:00:07]}
d6 {[%clk 01:32:18]} {[%emt 00:00:10]} 6. g4 {[%clk 01:32:44]} {[%emt
00:00:11]} e5 {[%clk 01:32:38]} {[%emt 00:00:11]} 7. Nf5 {[%clk 01:33:08]}
{[%emt 00:00:05]} h5 {[%clk 01:32:57]} {[%emt 00:00:12]} 8. Bg5 {[%clk
01:33:33]} {[%emt 00:00:05]} hxg4 {[%clk 01:32:02]} {[%emt 00:01:25]} 9. Nd5
{[%clk 01:33:54]} {[%emt 00:00:09]} Bxf5 {[%clk 01:29:50]} {[%emt 00:02:42]} 10.
Bxf6 {[%clk 01:33:59]} {[%emt 00:00:25]} gxf6 {[%clk 01:29:53]} {[%emt
00:00:26]} 11. exf5 {[%clk 01:34:24]} {[%emt 00:00:05]} Nc6 {[%clk 01:27:53]}
{[%emt 00:02:31]} 12. c3 {[%clk 01:34:28]} {[%emt 00:00:26]} Rh4 {[%clk
01:18:13]} {[%emt 00:10:09]} 13. Qa4 {[%clk 01:23:08]} {[%emt 00:11:50]} Bh6
{[%clk 01:13:17]} {[%emt 00:05:26]} 14. Bb5 {[%clk 01:14:33]} {[%emt 00:09:05]}
Kf8 {[%clk 01:02:23]} {[%emt 00:11:24]} 15. Bxc6 {[%clk 01:12:08]} {[%emt
00:02:56]} bxc6 {[%clk 01:02:46]} {[%emt 00:00:07]} 16. Qxc6 {[%clk 01:12:34]}
{[%emt 00:00:04]} Rc8 {[%clk 01:00:34]} {[%emt 00:02:41]} 17. Qa6 {[%clk
01:10:36]} {[%emt 00:02:26]} Kg7 {[%clk 00:51:25]} {[%emt 00:09:41]} 18. Rd1
{[%clk 01:09:39]} {[%emt 00:01:27]} Qd7 {[%clk 00:42:15]} {[%emt 00:09:39]} 19.
Qe2 {[%clk 01:05:35]} {[%emt 00:04:35]} Rb8 {[%clk 00:39:30]} {[%emt 00:03:15]}
20. Rg1 {[%clk 01:03:52]} {[%emt 00:02:14]} Qxf5 {[%clk 00:37:46]} {[%emt
00:02:13]} 21. h3 {[%clk 01:04:15]} {[%emt 00:00:08]} Rxh3 {[%clk 00:29:31]}
{[%emt 00:08:44]} 22. Qxg4+ {[%clk 01:04:26]} {[%emt 00:00:20]} Qxg4 {[%clk
00:29:39]} {[%emt 00:00:21]} 23. Rxg4+ {[%clk 01:04:52]} {[%emt 00:00:04]} Bg5
{[%clk 00:29:43]} {[%emt 00:00:25]} 24. b3 {[%clk 01:05:10]} {[%emt 00:00:14]}
Kh6 {[%clk 00:26:02]} {[%emt 00:04:08]} 25. Ra4 {[%clk 01:04:15]} {[%emt
00:01:27]} Rb7 {[%clk 00:24:59]} {[%emt 00:01:34]} 26. c4 {[%clk 01:03:33]}
{[%emt 00:01:11]} Kg7 {[%clk 00:05:27]} {[%emt 00:20:01]} 27. Ke2 {[%clk
01:02:02]} {[%emt 00:02:02]} f5 {[%clk 00:04:46]} {[%emt 00:01:11]} 28. Rg1
{[%clk 01:00:50]} {[%emt 00:01:43]} f6 {[%clk 00:03:32]} {[%emt 00:01:43]} 29.
Ra6 {[%clk 01:00:39]} {[%emt 00:00:42]} Kf7 {[%clk 00:00:58]} {[%emt 00:03:05]}
30. Rxd6 {[%clk 00:59:55]} {[%emt 00:01:13]} e4 {[%clk 00:01:00]} {[%emt
00:00:27]} 31. c5 {[%clk 00:51:40]} {[%emt 00:08:45]} Rb5 {[%clk 00:01:01]}
{[%emt 00:00:29]} 32. b4 {[%clk 00:52:05]} {[%emt 00:00:05]} Ra3 {[%clk
00:01:12]} {[%emt 00:00:18]} 33. Ra1 {[%clk 00:52:21]} {[%emt 00:00:16]} a5
{[%clk 00:00:45]} {[%emt 00:00:57]} 34. Rb6 {[%clk 00:52:42]} {[%emt 00:00:08]}
Rxb4 {[%clk 00:01:01]} {[%emt 00:00:15]} 35. Nxb4 {[%clk 00:52:10]} {[%emt
00:01:02]} axb4 {[%clk 00:01:14]} {[%emt 00:00:17]} 36. Rxb4 {[%clk 00:52:36]}
{[%emt 00:00:03]} Rc3 {[%clk 00:01:37]} {[%emt 00:00:07]} 37. Rb2 {[%clk
00:52:36]} {[%emt 00:00:30]} f4 {[%clk 00:01:16]} {[%emt 00:00:52]} 38. a4
{[%clk 00:49:01]} {[%emt 00:04:05]} f3+ {[%clk 00:01:39]} {[%emt 00:00:07]} 39.
Kd1 {[%clk 00:49:26]} {[%emt 00:00:04]} e3 {[%clk 00:01:05]} {[%emt 00:01:05]}
40. a5 {[%clk 01:00:35]} {[%emt 00:04:22]} e2+ {[%clk 00:16:05]} {[%emt
00:00:29]} 41. Ke1 {[%clk 01:01:01]} {[%emt 00:00:04]} Rxc5 {[%clk 00:16:11]}
{[%emt 00:00:24]} 42. Rb3 {[%clk 01:01:01]} {[%emt 00:00:30]} Rd5 {[%clk
00:14:00]} {[%emt 00:02:40]} 43. Rxf3 {[%clk 01:01:25]} {[%emt 00:00:06]} Bd2+
{[%clk 00:14:11]} {[%emt 00:00:20]} 44. Kxe2 {[%clk 01:01:50]} {[%emt
00:00:04]} Bxa5 {[%clk 00:14:27]} {[%emt 00:00:15]} 45. Rd1 {[%clk 01:01:11]}
{[%emt 00:01:09]} Rc5 {[%clk 00:12:17]} {[%emt 00:02:39]} 46. Rd7+ {[%clk
01:00:57]} {[%emt 00:00:44]} Ke6 {[%clk 00:12:10]} {[%emt 00:00:37]} 47. Ra7
{[%clk 01:00:33]} {[%emt 00:00:55]} Bc3 {[%clk 00:11:51]} {[%emt 00:00:49]} 48.
Re3+ {[%clk 00:59:38]} {[%emt 00:01:25]} Kf5 {[%clk 00:12:12]} {[%emt
00:00:08]} 49. Ra4 {[%clk 00:57:03]} {[%emt 00:03:05]} Bb2 {[%clk 00:11:40]}
{[%emt 00:01:02]} 50. Rd3 {[%clk 00:57:14]} {[%emt 00:00:19]} Kg5 {[%clk
00:10:19]} {[%emt 00:01:51]} 51. Rb3 {[%clk 00:57:03]} {[%emt 00:00:41]} Be5
{[%clk 00:10:31]} {[%emt 00:00:18]} 52. Ke3 {[%clk 00:57:23]} {[%emt 00:00:10]}
Bc7 {[%clk 00:09:07]} {[%emt 00:01:55]} 53. Rab4 {[%clk 00:57:08]} {[%emt
00:00:45]} Rf5 {[%clk 00:08:02]} {[%emt 00:01:33]} 54. Rb5 {[%clk 00:57:04]}
{[%emt 00:00:35]} Be5 {[%clk 00:05:35]} {[%emt 00:02:57]} 55. R3b4 {[%clk
00:56:46]} {[%emt 00:00:48]} Kg6 {[%clk 00:05:55]} {[%emt 00:00:10]} 56. Ke2
{[%clk 00:56:58]} {[%emt 00:00:17]} Kg5 {[%clk 00:05:36]} {[%emt 00:00:50]} 57.
Rb7 {[%clk 00:56:58]} {[%emt 00:00:31]} Bf4 {[%clk 00:05:40]} {[%emt 00:00:25]}
58. Rg7+ {[%clk 00:57:13]} {[%emt 00:00:15]} Kh6 {[%clk 00:05:47]} {[%emt
00:00:23]} 59. Rg4 {[%clk 00:57:27]} {[%emt 00:00:17]} Bd6 {[%clk 00:04:48]}
{[%emt 00:01:27]} 60. Rb1 {[%clk 00:56:31]} {[%emt 00:01:28]} Re5+ {[%clk
00:03:10]} {[%emt 00:02:08]} 61. Kd3 {[%clk 00:56:11]} {[%emt 00:00:49]} Rg5
{[%clk 00:02:20]} {[%emt 00:01:20]} 62. Rbg1 {[%clk 00:55:35]} {[%emt
00:01:07]} Kg6 {[%clk 00:02:02]} {[%emt 00:00:47]} 63. Rxg5+ {[%clk 00:55:45]}
{[%emt 00:00:21]} fxg5 {[%clk 00:01:55]} {[%emt 00:00:37]} 64. Ke4 {[%clk
00:56:11]} {[%emt 00:00:03]} Bc5 {[%clk 00:02:13]} {[%emt 00:00:12]} 65. Rg2
{[%clk 00:56:38]} {[%emt 00:00:04]} Kf6 {[%clk 00:02:23]} {[%emt 00:00:19]} 66.
f3 {[%clk 00:56:54]} {[%emt 00:00:14]} Be7 {[%clk 00:02:10]} {[%emt 00:00:42]}
67. Rg1 {[%clk 00:56:33]} {[%emt 00:00:52]} Bf8 {[%clk 00:02:10]} {[%emt
00:00:30]} 68. Ra1 {[%clk 00:55:42]} {[%emt 00:01:21]} Kg6 {[%clk 00:02:23]}
{[%emt 00:00:17]} 69. Ra6+ {[%clk 00:55:52]} {[%emt 00:00:20]} Kh5 {[%clk
00:02:42]} {[%emt 00:00:11]} 70. Ra8 {[%clk 00:55:56]} {[%emt 00:00:26]} Bd6
{[%clk 00:02:08]} {[%emt 00:01:04]} 71. Kd5 {[%clk 00:55:42]} {[%emt 00:00:45]}
Bf4 {[%clk 00:02:11]} {[%emt 00:00:26]} 72. Rh8 {[%clk 00:55:57]} {[%emt
00:00:16]} Kg6 {[%clk 00:02:29]} {[%emt 00:00:11]} 73. Ke6 {[%clk 00:55:54]}
{[%emt 00:00:34]} Be3 {[%clk 00:02:35]} {[%emt 00:00:23]} 74. Re8 {[%clk
00:52:59]} {[%emt 00:03:25]} Bf4 {[%clk 00:02:48]} {[%emt 00:00:16]} 75. Rh8
{[%clk 00:51:16]} {[%emt 00:02:14]} Be3 {[%clk 00:03:03]} {[%emt 00:00:15]} 76.
Ke5 {[%clk 00:51:42]} {[%emt 00:00:05]} Bf4+ {[%clk 00:03:15]} {[%emt
00:00:17]} 77. Ke4 {[%clk 00:52:08]} {[%emt 00:00:04]} Bd2 {[%clk 00:03:13]}
{[%emt 00:00:31]} 78. Kd3 {[%clk 00:52:14]} {[%emt 00:00:26]} Bf4 {[%clk
00:01:47]} {[%emt 00:01:55]} 79. Ke2 {[%clk 00:52:40]} {[%emt 00:00:05]} Bd6
{[%clk 00:00:41]} {[%emt 00:01:35]} 80. Rd8 {[%clk 00:51:49]} {[%emt 00:01:21]}
Bf4 {[%clk 00:00:38]} {[%emt 00:00:33]} 81. Kf2 {[%clk 00:52:03]} {[%emt
00:00:16]} Kf5 {[%clk 00:00:52]} {[%emt 00:00:16]} 82. Rf8+ {[%clk 00:52:27]}
{[%emt 00:00:05]} Kg6 {[%clk 00:00:52]} {[%emt 00:00:31]} 83. Kg2 {[%clk
00:52:40]} {[%emt 00:00:18]} Be3 {[%clk 00:00:57]} {[%emt 00:00:24]} 84. Kg3
{[%clk 00:52:58]} {[%emt 00:00:13]} Kg7 {[%clk 00:01:00]} {[%emt 00:00:27]} 85.
Rf5 {[%clk 00:53:07]} {[%emt 00:00:20]} Kh6 {[%emt 00:00:58]} 86. Kg4 Kg6
{[%clk 00:00:53]} {[%emt 00:00:13]} 87. Re5 {[%clk 00:53:53]} {[%emt 00:00:10]}
Bf4 {[%clk 00:01:09]} {[%emt 00:00:14]} 88. Re6+ {[%clk 00:54:19]} {[%emt
00:00:04]} Kf7 {[%clk 00:01:37]} {[%emt 00:00:03]} 89. Kf5 {[%clk 00:54:44]}
{[%emt 00:00:04]} 1-0